fUSD/lending_fUSD_20250107
["ID","MTS","AMOUNT","RATE_DAILY","PERIOD"]
[347944895,1736233284199,-500.0,0.00010347,2]
[347944896,1736233284227,-500.0,0.00010347,2]
[347944897,1736233284255,-342.88,0.00010347,2]
[347944898,1736233284279,-441.23146041,0.00010347,2]
[347944899,1736233284303,-500.0,0.00010347,2]
[347944900,1736233284327,-410.32,0.00010347,2]
[347944901,1736233284350,-500.0,0.00010347,2]
[347944902,1736233284375,-500.0,0.00010347,2]
[347944903,1736233284399,-745.61,0.00010347,2]
[347944904,1736233284425,-2045.53,0.00010347,2]
[347944905,1736233284450,-556.70452115,0.00010347,2]
[347944906,1736233284473,-500.0,0.00010347,2]
[347944907,1736233284497,-245.8183568,0.00010347,2]
[347944908,1736233284521,-500.0,0.00010347,2]
[347944909,1736233284545,-500.0,0.00010347,2]
[347944910,1736233284570,-498.7,0.00010347,2]
[347944911,1736233284594,-500.0,0.00010347,2]
[347944912,1736233284618,-500.0,0.00010347,2]
[347944913,1736233284642,-500.0,0.00010347,2]
[347944914,1736233284666,-500.0,0.00010347,2]
[347944915,1736233284689,-777.7,0.00010347,2]
[347944916,1736233284712,-500.0,0.00010347,2]
[347944917,1736233284735,-500.0,0.00010347,2]
[347944918,1736233284759,-500.0,0.00010347,2]
[347944919,1736233284782,-500.0,0.00010347,2]
[347944920,1736233284806,-634.16,0.00010347,2]
[347944921,1736233284830,-500.0,0.00010347,2]
[347944922,1736233284855,-1511.39,0.00010347,2]
[347944923,1736233284879,-502.68,0.00010347,2]
[347944924,1736233284902,-500.0,0.00010347,2]
[347944925,1736233284926,-504.52,0.00010347,2]
[347944926,1736233284949,-500.0,0.00010347,2]
[347944927,1736233284975,-603.47,0.00010347,2]
[347944928,1736233285000,-500.0,0.00010347,2]
[347944929,1736233285028,-500.0,0.00010347,2]
[347944930,1736233285053,-631.58,0.00010347,2]
[347944931,1736233285079,-3005.19,0.00010347,2]
[347944932,1736233285121,-500.0,0.00010347,2]
[347944933,1736233285162,-500.0,0.00010347,2]
[347944934,1736233285204,-1108.7,0.00010347,2]
[347944935,1736233285251,-678.22,0.00010347,2]
[347944936,1736233285294,-980.72,0.00010347,2]
[347944937,1736233285337,-516.92,0.00010347,2]
[347944938,1736233285380,-500.0,0.00010347,2]
[347944939,1736233285425,-500.0,0.00010347,2]
[347944940,1736233285467,-500.0,0.00010347,2]
[347944941,1736233285514,-500.0,0.00010347,2]
[347944942,1736233285557,-874.05,0.00010347,2]
[347944943,1736233285600,-500.0,0.00010347,2]
[347944944,1736233285643,-500.0,0.00010347,2]
[347944945,1736233285684,-500.0,0.00010347,2]
[347944946,1736233285726,-500.0,0.00010347,2]
[347944947,1736233285767,-500.0,0.00010415,2]
[347944948,1736233285808,-500.0,0.00010415,2]
[347944949,1736233285849,-500.0,0.00010415,2]
[347944950,1736233285888,-500.0,0.00010415,2]
[347944951,1736233285928,-591.7966935,0.00010415,2]
[347944952,1736233285952,-500.0,0.00010415,2]
[347944953,1736233285977,-500.0,0.00010415,2]
[347944954,1736233286002,-500.0,0.00010415,2]
[347944955,1736233286033,-744.75,0.00010415,2]
[347944956,1736233286057,-500.0,0.00010415,2]
[347944957,1736233286082,-500.0,0.00010415,2]
[347944958,1736233286108,-500.0,0.00010415,2]
[347944959,1736233286133,-500.0,0.00010415,2]
[347944960,1736233286158,-500.0,0.00010415,2]
[347944961,1736233286183,-500.0,0.00010415,2]
[347944962,1736233286208,-1054.51,0.00010422,2]
[347944963,1736233286236,-150.0,0.00010446,2]
[347944964,1736233286263,-932.63226937,0.00010479,2]
[347944965,1736233286286,-1000.0,0.00010521,2]
[347944966,1736233286315,-175.581124,0.00010543,2]
[347944967,1736233286341,-175.581124,0.00010547,2]
[347944968,1736233286367,-152.122056,0.00010547,2]
[347944969,1736233286394,-150.0,0.00010551,2]
[347944970,1736233286421,-175.581124,0.00010571,2]
[347944971,1736233286448,-175.581124,0.00010572,2]
[347944972,1736233286474,-175.581124,0.00010572,2]
[347944973,1736233286500,-152.122056,0.00010572,2]
[347944974,1736233286527,-175.581124,0.00010573,2]
[347944975,1736233286552,-152.122056,0.00010573,2]
[347944976,1736233286581,-932.63226937,0.00010614,2]
[347944977,1736233286607,-384.76445215,0.00010618,2]
[347944978,1736233286632,-237.12,0.00010618,2]
[347944979,1736233286657,-500.0,0.00010618,2]
[347944980,1736233286682,-500.0,0.00010618,2]
[347944981,1736233286706,-500.0,0.00010618,2]
[347944982,1736233286729,-500.0,0.00010618,2]
[347944983,1736233286752,-500.0,0.00010618,2]
[347944984,1736233286781,-500.0,0.00010618,2]
[347944985,1736233286805,-500.0,0.00010618,2]
[347944986,1736233286830,-590.97366862,0.00010618,2]
[347944987,1736233286854,-500.0,0.00010618,2]
[347944988,1736233286878,-496.97055402,0.00010618,2]
[347944989,1736233286902,-500.0,0.00010618,2]
[347944990,1736233286926,-500.0,0.00010618,2]
[347944991,1736233286953,-500.0,0.00010618,2]
[347944992,1736233286978,-211.32381926,0.00010618,2]
[347944993,1736233287003,-500.0,0.00010618,2]
[347944994,1736233287030,-500.0,0.00010618,2]
[347944995,1736233287056,-500.0,0.00010618,2]
[347944996,1736233287082,-500.0,0.00010618,2]
[347944997,1736233287109,-527.48732007,0.00010618,2]
[347944998,1736233287133,-500.0,0.00010618,2]
[347944999,1736233287158,-500.0,0.00010618,2]
[347945000,1736233287185,-500.0,0.00010618,2]
[347945001,1736233287210,-164.39103155,0.00010618,2]
[347945002,1736233287235,-524.26,0.00010618,2]
[347945003,1736233287260,-500.0,0.00010618,2]
[347945004,1736233287284,-500.0,0.00010618,2]
[347945005,1736233287308,-500.0,0.00010618,2]
[347945006,1736233287332,-546.49024803,0.00010618,2]
[347945007,1736233287356,-500.0,0.00010618,2]
[347945008,1736233287380,-500.0,0.00010618,2]
[347945009,1736233287606,-500.0,0.00010618,2]
[347945010,1736233287632,-500.0,0.00010618,2]
[347945011,1736233287657,-500.0,0.00010618,2]
[347945012,1736233287683,-500.0,0.00010618,2]
[347945013,1736233287709,-953.09,0.00010618,2]
[347945014,1736233287733,-500.0,0.00010618,2]
[347945015,1736233287758,-500.0,0.00010618,2]
[347945016,1736233287781,-500.0,0.00010618,2]
[347945017,1736233287806,-209.76454033,0.00010618,2]
[347945018,1736233287830,-500.0,0.00010618,2]
[347945019,1736233287855,-1206.25,0.00010618,2]
[347945020,1736233287878,-1206.25,0.00010618,2]
[347945021,1736233287902,-515.28037978,0.00010618,2]
[347945022,1736233287927,-500.0,0.00010618,2]
[347945023,1736233287952,-535.71344987,0.00010618,2]
[347945024,1736233287977,-500.0,0.00010618,2]
[347945025,1736233288003,-1460.97,0.00010618,2]
[347945026,1736233288032,-500.0,0.00010618,2]
[347945027,1736233288058,-1400.09,0.00010618,2]
[347945028,1736233288084,-519.64,0.00010618,2]
[347945029,1736233288110,-500.0,0.00010618,2]
[347945030,1736233288135,-500.0,0.00010618,2]
[347945031,1736233288160,-199.13746605,0.00010618,2]
[347945032,1736233288187,-240.24,0.00010618,2]
[347945033,1736233288213,-264.46915342,0.00010618,2]
[347945034,1736233288240,-554.56,0.00010618,2]
[347945035,1736233288266,-151.58238254,0.00010618,2]
[347945036,1736233288292,-175.581124,0.0001062,2]
[347945037,1736233288317,-500.0,0.00010621,2]
[347945038,1736233288344,-255.53,0.00010621,2]
[347945039,1736233288371,-500.0,0.00010621,2]
[347945040,1736233288397,-500.0,0.00010621,2]
[347945041,1736233288423,-500.0,0.00010621,2]
[347945042,1736233288449,-745.61,0.00010621,2]
[347945043,1736233288475,-2045.53,0.00010621,2]
[347945044,1736233288501,-500.0,0.00010621,2]
[347945045,1736233288529,-645.45871871,0.00010621,2]
[347945046,1736233288556,-500.0,0.00010621,2]
[347945047,1736233288581,-500.0,0.00010621,2]
[347945048,1736233288608,-500.0,0.00010621,2]
[347945049,1736233288634,-259.12577246,0.00010621,2]
[347945050,1736233288660,-777.7,0.00010621,2]
[347945051,1736233288687,-237.93148364,0.00010621,2]
[347945052,1736233288712,-500.0,0.00010621,2]
[347945053,1736233288738,-500.0,0.00010621,2]
[347945054,1736233288763,-500.0,0.00010621,2]
[347945055,1736233288790,-634.16,0.00010621,2]
[347945056,1736233288814,-500.0,0.00010621,2]
[347945057,1736233288839,-1511.39,0.00010621,2]
[347945058,1736233288864,-500.0,0.00010621,2]
[347945059,1736233288889,-504.52,0.00010621,2]
[347945060,1736233288914,-433.48880414,0.00010621,2]
[347945061,1736233288939,-603.47,0.00010621,2]
[347945062,1736233288965,-500.0,0.00010621,2]
[347945063,1736233288989,-500.0,0.00010621,2]
[347945064,1736233289017,-631.58,0.00010621,2]
[347945065,1736233289043,-3005.19,0.00010621,2]
[347945066,1736233289067,-360.23322664,0.00010621,2]
[347945067,1736233289095,-500.0,0.00010621,2]
[347945068,1736233289121,-1108.7,0.00010621,2]
[347945069,1736233289146,-678.22,0.00010621,2]
[347945070,1736233289173,-980.72,0.00010621,2]
[347945071,1736233289198,-516.92,0.00010621,2]
[347945072,1736233289226,-500.0,0.00010621,2]
[347945073,1736233289251,-500.0,0.00010621,2]
[347945074,1736233289276,-500.0,0.00010621,2]
[347945075,1736233289300,-500.0,0.00010621,2]
[347945076,1736233289326,-874.05,0.00010621,2]
[347945077,1736233289351,-500.0,0.00010621,2]
[347945078,1736233289376,-500.0,0.00010621,2]
[347945079,1736233289401,-204.27651094,0.00010621,2]
[347945080,1736233289426,-500.0,0.00010621,2]
[347945081,1736233289451,-150.0,0.00010677,2]
[347945082,1736233289476,-636.0,0.00010677,2]
[347945083,1736233289503,-500.0,0.00010689,2]
[347945084,1736233289529,-184.08194141,0.00010689,2]
[347945085,1736233289554,-500.0,0.00010689,2]
[347945086,1736233289579,-603.14056215,0.00010689,2]
[347945087,1736233289606,-182.82556542,0.00010689,2]
[347945088,1736233289631,-203.20099222,0.00010689,2]
[347945089,1736233289656,-500.0,0.00010689,2]
[347945090,1736233289683,-744.75,0.00010689,2]
[347945091,1736233289707,-500.0,0.00010689,2]
[347945092,1736233289732,-500.0,0.00010689,2]
[347945093,1736233289758,-500.0,0.00010689,2]
[347945094,1736233289783,-500.0,0.00010689,2]
[347945095,1736233289808,-500.0,0.00010689,2]
[347945096,1736233289833,-500.0,0.00010689,2]
[347945097,1736233289868,-151.0,0.0001069,2]
[347945098,1736233289899,-175.581124,0.00010744,2]
[347945099,1736233289931,-152.122056,0.00010744,2]
[347945100,1736233289964,-932.63226937,0.00010748,2]
[347945101,1736233289996,-173.58061399,0.00010761,2]
[347945102,1736233290030,-500.0,0.00010773,2]
[347945103,1736233290061,-175.581124,0.00010821,2]
[347945104,1736233290091,-150.0,0.00010844,2]
[347945105,1736233290123,-175.581124,0.00010845,2]
[347945106,1736233290154,-152.122056,0.00010845,2]
[347945107,1736233290188,-175.581124,0.00010846,2]
[347945108,1736233290220,-4146.4172966,0.00010875,2]
[347945109,1736233290251,-801.26598351,0.00010875,2]
[347945110,1736233290282,-1138.4975909,0.00010875,2]
[347945111,1736233290312,-896.174781,0.00010875,2]
[347945112,1736233290341,-1470756.32323654,0.0001088,2]
[347945113,1736233290369,-180.908462,0.0001088,2]
[347945114,1736233290400,-180.908462,0.0001088,2]
[347945115,1736233290429,-151.0,0.0001088,2]
[347945116,1736233290459,-932.63226937,0.00010883,2]
[347945117,1736233290485,-530.36,0.00010892,2]
[347945118,1736233290515,-500.0,0.00010892,2]
[347945119,1736233290544,-500.0,0.00010892,2]
[347945120,1736233290573,-500.0,0.00010892,2]
[347945121,1736233290601,-500.0,0.00010892,2]
[347945122,1736233290633,-500.0,0.00010892,2]
[347945123,1736233290659,-445.13947916,0.00010892,2]
[347945124,1736233290687,-500.0,0.00010892,2]
[347945125,1736233290715,-500.0,0.00010892,2]
[347945126,1736233290743,-500.0,0.00010892,2]
[347945127,1736233290770,-500.0,0.00010892,2]
[347945128,1736233290798,-368.61165584,0.00010892,2]
[347945129,1736233290826,-500.0,0.00010892,2]
[347945130,1736233290854,-500.0,0.00010892,2]
[347945131,1736233290882,-500.0,0.00010892,2]
[347945132,1736233290911,-500.0,0.00010892,2]
[347945133,1736233290939,-524.26,0.00010892,2]
[347945134,1736233290968,-500.0,0.00010892,2]
[347945135,1736233290995,-407.07508962,0.00010892,2]
[347945136,1736233291027,-500.0,0.00010892,2]
[347945137,1736233291055,-295.90904618,0.00010892,2]
[347945138,1736233291083,-500.0,0.00010892,2]
[347945139,1736233291112,-500.0,0.00010892,2]
[347945140,1736233291140,-500.0,0.00010892,2]
[347945141,1736233291168,-500.0,0.00010892,2]
[347945142,1736233291197,-408.65171063,0.00010892,2]
[347945143,1736233291229,-953.09,0.00010892,2]
[347945144,1736233291261,-500.0,0.00010892,2]
[347945145,1736233291294,-500.0,0.00010892,2]
[347945146,1736233291325,-556.95109672,0.00010892,2]
[347945147,1736233291356,-500.0,0.00010892,2]
[347945148,1736233291391,-1206.25,0.00010892,2]
[347945149,1736233291420,-1206.25,0.00010892,2]
[347945150,1736233291451,-500.0,0.00010892,2]
[347945151,1736233291481,-571.14504419,0.00010892,2]
[347945152,1736233291513,-500.0,0.00010892,2]
[347945153,1736233291545,-1460.97,0.00010892,2]
[347945154,1736233291576,-1400.09,0.00010892,2]
[347945155,1736233291606,-519.64,0.00010892,2]
[347945156,1736233291636,-500.0,0.00010892,2]
[347945157,1736233291665,-441.0,0.00010892,2]
[347945158,1736233291695,-554.56,0.00010892,2]
[347945159,1736233291724,-175.581124,0.00010894,2]
[347945160,1736233291752,-152.122056,0.00010894,2]
[347945161,1736233291781,-500.0,0.00010895,2]
[347945162,1736233291809,-500.0,0.00010895,2]
[347945163,1736233291838,-396.07927636,0.00010895,2]
[347945164,1736233291866,-500.0,0.00010895,2]
[347945165,1736233291894,-745.61,0.00010895,2]
[347945166,1736233291924,-2045.53,0.00010895,2]
[347945167,1736233291953,-500.0,0.00010895,2]
[347945168,1736233291981,-325.59,0.00010895,2]
[347945169,1736233292014,-500.0,0.00010895,2]
[347945170,1736233292042,-500.0,0.00010895,2]
[347945171,1736233292072,-777.7,0.00010895,2]
[347945172,1736233292101,-500.0,0.00010895,2]
[347945173,1736233292129,-500.0,0.00010895,2]
[347945174,1736233292157,-500.0,0.00010895,2]
[347945175,1736233292188,-634.16,0.00010895,2]
[347945176,1736233292217,-482.87210477,0.00010895,2]
[347945177,1736233292248,-1511.39,0.00010895,2]
[347945178,1736233292278,-500.0,0.00010895,2]
[347945179,1736233292307,-504.52,0.00010895,2]
[347945180,1736233292336,-603.47,0.00010895,2]
[347945181,1736233292367,-500.0,0.00010895,2]
[347945182,1736233292395,-500.0,0.00010895,2]
[347945183,1736233292425,-631.58,0.00010895,2]
[347945184,1736233292454,-3005.19,0.00010895,2]
[347945185,1736233292767,-500.0,0.00010895,2]
[347945186,1736233292796,-1108.7,0.00010895,2]
[347945187,1736233292822,-678.22,0.00010895,2]
[347945188,1736233292847,-980.72,0.00010895,2]
[347945189,1736233292873,-516.92,0.00010895,2]
[347945190,1736233292898,-294.48712705,0.00010895,2]
[347945191,1736233292925,-500.0,0.00010895,2]
[347945192,1736233292951,-500.0,0.00010895,2]
[347945193,1736233292975,-500.0,0.00010895,2]
[347945194,1736233293003,-874.05,0.00010895,2]
[347945195,1736233293032,-500.0,0.00010895,2]
[347945196,1736233293060,-500.0,0.00010895,2]
[347945197,1736233293086,-500.0,0.00010895,2]
[347945198,1736233293111,-250.0,0.000109,2]
[347945199,1736233293135,-250.0,0.000109,2]
[347945200,1736233293158,-250.0,0.000109,2]
[347945201,1736233293183,-250.0,0.000109,2]
[347945202,1736233293207,-250.0,0.000109,2]
[347945203,1736233293234,-250.0,0.000109,2]
[347945204,1736233293259,-250.0,0.000109,2]
[347945205,1736233293284,-250.0,0.000109,2]
[347945206,1736233293309,-250.0,0.000109,2]
[347945207,1736233293334,-250.0,0.000109,2]
[347945208,1736233293358,-250.0,0.000109,2]
[347945209,1736233293383,-250.0,0.000109,2]
[347945210,1736233293407,-250.0,0.000109,2]
[347945211,1736233293433,-250.0,0.000109,2]
[347945212,1736233293458,-250.0,0.000109,2]
[347945213,1736233293482,-250.0,0.000109,2]
[347945214,1736233293507,-250.0,0.000109,2]
[347945215,1736233293531,-250.0,0.000109,2]
[347945216,1736233293556,-250.0,0.000109,2]
[347945217,1736233293581,-250.0,0.000109,2]
[347945218,1736233293604,-250.0,0.000109,2]
[347945219,1736233293628,-250.0,0.000109,2]
[347945220,1736233293651,-250.0,0.000109,2]
[347945221,1736233293674,-250.0,0.000109,2]
[347945222,1736233293698,-250.0,0.000109,2]
[347945223,1736233293722,-475.9,0.000109,2]
[347945224,1736233293747,-900.0,0.000109,3]
[347945225,1736233293772,-150.0,0.00010932,2]
[347945226,1736233293797,-175.581124,0.00010957,2]
[347945227,1736233293819,-1655.28,0.00010958,2]
[347945228,1736233293843,-151.0,0.00010959,2]
[347945229,1736233293866,-151.0,0.00010959,2]
[347945230,1736233293890,-151.0,0.00010959,2]
[347945231,1736233293914,-151.0,0.00010959,2]
[347945232,1736233293938,-151.0,0.00010959,2]
[347945233,1736233293963,-151.0,0.00010959,2]
[347945234,1736233293986,-151.0,0.00010959,2]
[347945235,1736233294013,-151.0,0.00010959,2]
[347945236,1736233294037,-151.0,0.00010959,2]
[347945237,1736233294062,-151.0,0.00010959,2]
[347945238,1736233294087,-151.0,0.00010959,2]
[347945239,1736233294112,-151.0,0.00010959,2]
[347945240,1736233294136,-151.0,0.00010959,2]
[347945241,1736233294161,-151.0,0.00010959,2]
[347945242,1736233294187,-151.0,0.00010959,2]
[347945243,1736233294212,-151.0,0.00010959,2]
[347945244,1736233294240,-151.0,0.00010959,2]
[347945245,1736233294266,-151.0,0.00010959,2]
[347945246,1736233294292,-151.0,0.00010959,2]
[347945247,1736233294319,-151.0,0.00010959,2]
[347945248,1736233294345,-151.0,0.00010959,2]
[347945249,1736233294371,-151.0,0.00010959,2]
[347945250,1736233294399,-151.0,0.00010959,2]
[347945251,1736233294424,-151.0,0.00010959,2]
[347945252,1736233294450,-151.0,0.00010959,2]
[347945253,1736233294476,-151.0,0.00010959,2]
[347945254,1736233294503,-151.0,0.00010959,2]
[347945255,1736233294528,-151.0,0.00010959,2]
[347945256,1736233294554,-151.0,0.00010959,2]
[347945257,1736233294578,-151.0,0.00010959,2]
[347945258,1736233294604,-151.0,0.00010959,2]
[347945259,1736233294637,-151.0,0.00010959,2]
[347945260,1736233294661,-151.0,0.00010959,2]
[347945261,1736233294685,-151.0,0.00010959,2]
[347945262,1736233294708,-151.0,0.00010959,2]
[347945263,1736233294733,-151.0,0.00010959,2]
[347945264,1736233294756,-151.0,0.00010959,2]
[347945265,1736233294780,-151.0,0.00010959,2]
[347945266,1736233294806,-151.0,0.00010959,2]
[347945267,1736233294830,-151.0,0.00010959,2]
[347945268,1736233294854,-151.0,0.00010959,2]
[347945269,1736233294878,-151.0,0.00010959,2]
[347945270,1736233294903,-151.0,0.00010959,2]
[347945271,1736233294928,-151.0,0.00010959,2]
[347945272,1736233294953,-151.0,0.00010959,2]
[347945273,1736233294979,-151.0,0.00010959,2]
[347945274,1736233295005,-151.0,0.00010959,2]
[347945275,1736233295033,-151.0,0.00010959,2]
[347945276,1736233295057,-151.0,0.00010959,2]
[347945277,1736233295083,-151.0,0.00010959,2]
[347945278,1736233295110,-151.0,0.00010959,2]
[347945279,1736233295134,-151.0,0.00010959,2]
[347945280,1736233295158,-151.0,0.00010959,2]
[347945281,1736233295182,-151.0,0.00010959,2]
[347945282,1736233295205,-151.0,0.00010959,2]
[347945283,1736233295231,-151.0,0.00010959,2]
[347945284,1736233295257,-151.0,0.00010959,2]
[347945285,1736233295281,-151.0,0.00010959,2]
[347945286,1736233295305,-151.0,0.00010959,2]
[347945287,1736233295329,-151.0,0.00010959,2]
[347945288,1736233295353,-151.0,0.00010959,2]
[347945289,1736233295376,-151.0,0.00010959,2]
[347945290,1736233295400,-151.0,0.00010959,2]
[347945291,1736233295424,-151.0,0.00010959,2]
[347945292,1736233295450,-151.0,0.00010959,2]
[347945293,1736233295474,-151.0,0.00010959,2]
[347945294,1736233295499,-151.0,0.00010959,2]
[347945295,1736233295524,-151.0,0.00010959,2]
[347945296,1736233295550,-151.0,0.00010959,2]
[347945297,1736233295575,-151.0,0.00010959,2]
[347945298,1736233295600,-151.0,0.00010959,2]
[347945299,1736233295626,-151.0,0.00010959,2]
[347945300,1736233295651,-151.0,0.00010959,2]
[347945301,1736233295678,-151.0,0.00010959,2]
[347945302,1736233295701,-666.0,0.00010959,2]
[347945303,1736233295727,-666.0,0.00010959,2]
[347945304,1736233295751,-151.0,0.00010959,2]
[347945305,1736233295775,-151.0,0.00010959,2]
[347945306,1736233295816,-151.0,0.00010959,2]
[347945307,1736233295859,-222.0,0.00010959,2]
[347945308,1736233295897,-666.0,0.00010959,2]
[347945309,1736233295936,-670.18790703,0.00010959,2]
[347945310,1736233295976,-151.0,0.00010959,2]
[347945311,1736233296016,-151.0,0.00010959,2]
[347945312,1736233296054,-225.052393,0.00010959,2]
[347945313,1736233296094,-500.0,0.0001096,2]
[347945314,1736233296135,-1300.0,0.0001096,2]
[347945315,1736233296395,-3300.0,0.0001096,2]
[347945316,1736233296438,-500.0,0.00010963,2]
[347945317,1736233296481,-500.0,0.00010963,2]
[347945318,1736233296522,-500.0,0.00010963,2]
[347945319,1736233296564,-744.75,0.00010963,2]
[347945320,1736233296605,-410.76025719,0.00010963,2]
[347945321,1736233296646,-500.0,0.00010963,2]
[347945322,1736233296685,-500.0,0.00010963,2]
[347945323,1736233296725,-500.0,0.00010963,2]
[347945324,1736233296764,-500.0,0.00010963,2]
[347945325,1736233296803,-500.0,0.00010963,2]
[347945326,1736233296841,-498362.0,0.00011,2]
[347945327,1736233296880,-115207.0,0.00011,2]
[347945328,1736233296916,-3201.66877177,0.00011,2]
[347945329,1736233296953,-2562.74386125,0.00011,2]
[347945330,1736233296989,-180.908462,0.00011,2]
[347945331,1736233297027,-180.908462,0.00011,2]
[347945332,1736233297064,-151.0,0.00011,2]
[347945333,1736233297104,-550.0,0.00011,2]
[347945334,1736233297143,-1000.0,0.00011003,2]
[347945335,1736233297188,-188.16,0.00011016,2]
[347945336,1736233297244,-932.63226937,0.00011017,2]
[347945337,1736233297298,-175.581124,0.00011018,2]
[347945338,1736233297343,-152.122056,0.00011018,2]
[347945339,1736233297394,-384.15525282,0.0001105,2]
[347945340,1736233297439,-2575.49986557,0.0001105,2]
[347945341,1736233297484,-150.0,0.00011057,2]
[347945342,1736233297527,-150.0,0.00011078,2]
[347945343,1736233297570,-175.581124,0.00011095,2]
[347945344,1736233297613,-150.0,0.00011103,2]
[347945345,1736233297656,-175.581124,0.00011119,2]
[347945346,1736233297696,-152.122056,0.00011119,2]
[347945347,1736233297740,-932.63226937,0.00011152,2]
[347945348,1736233297779,-202.61,0.00011166,2]
[347945349,1736233297818,-267.55,0.00011166,2]
[347945350,1736233297859,-176.38,0.00011166,2]
[347945351,1736233297898,-242.58324136,0.00011166,2]
[347945352,1736233297938,-500.0,0.00011166,2]
[347945353,1736233297986,-500.0,0.00011166,2]
[347945354,1736233298034,-500.0,0.00011166,2]
[347945355,1736233298084,-500.0,0.00011166,2]
[347945356,1736233298132,-500.0,0.00011166,2]
[347945357,1736233298171,-606.52423608,0.00011166,2]
[347945358,1736233298213,-500.0,0.00011166,2]
[347945359,1736233298256,-326.52877013,0.00011166,2]
[347945360,1736233298296,-524.26,0.00011166,2]
[347945361,1736233298336,-500.0,0.00011166,2]
[347945362,1736233298378,-346.86138983,0.00011166,2]
[347945363,1736233298419,-446.10435273,0.00011166,2]
[347945364,1736233298461,-500.0,0.00011166,2]
[347945365,1736233298502,-240.64771128,0.00011166,2]
[347945366,1736233298543,-500.0,0.00011166,2]
[347945367,1736233298582,-953.09,0.00011166,2]
[347945368,1736233298621,-500.0,0.00011166,2]
[347945369,1736233298661,-500.0,0.00011166,2]
[347945370,1736233298700,-500.0,0.00011166,2]
[347945371,1736233298739,-1206.25,0.00011166,2]
[347945372,1736233298778,-1206.25,0.00011166,2]
[347945373,1736233298817,-500.0,0.00011166,2]
[347945374,1736233298856,-500.0,0.00011166,2]
[347945375,1736233298896,-1460.97,0.00011166,2]
[347945376,1736233298936,-1400.09,0.00011166,2]
[347945377,1736233298980,-519.64,0.00011166,2]
[347945378,1736233299020,-378.43853847,0.00011166,2]
[347945379,1736233299063,-554.56,0.00011166,2]
[347945380,1736233299105,-1906.45004049,0.00011167,2]
[347945381,1736233299146,-1906.45004049,0.00011167,2]
[347945382,1736233299188,-175.581124,0.00011168,2]
[347945383,1736233299229,-3154.40192881,0.00011168,2]
[347945384,1736233299272,-1906.45004049,0.00011169,2]
[347945385,1736233299314,-460.17311772,0.00011169,2]
[347945386,1736233299356,-500.0,0.00011169,2]
[347945387,1736233299398,-745.61,0.00011169,2]
[347945388,1736233299442,-2045.53,0.00011169,2]
[347945389,1736233299483,-500.0,0.00011169,2]
[347945390,1736233299524,-500.0,0.00011169,2]
[347945391,1736233299562,-500.0,0.00011169,2]
[347945392,1736233299602,-777.7,0.00011169,2]
[347945393,1736233299645,-500.0,0.00011169,2]
[347945394,1736233299685,-500.0,0.00011169,2]